bitfinex-derivatives/quotes_ETHF0:USTF0_20251119
["timestamp","ask_amount","ask_price","bid_price","bid_amount"]
[1763594770486,3.11418939,3020.4,3020.3,0.00496787]
[1763594770877,0.357,3020.4,3020.3,0.55836787]
[1763594771076,5.43203038,3020.7,3020.3,0.55836787]
[1763594771077,3.21174099,3020.7,3020.5,0.3331]
[1763594771384,3.21174099,3020.7,3020.6,0.5534]
[1763594775085,0.00394099,3020.7,3020.6,0.5534]
[1763594776286,0.89399,3019.9,3019.8,3.2078]
[1763594776489,2.71647055,3019.9,3019.4,0.00403247]
[1763594777077,2.22028939,3019.9,3019.4,0.00403247]
[1763594777392,0.53706,3019.5,3019.4,0.00900034]
[1763594777785,1.31264937,3019.5,3019.4,0.00900034]
[1763594779691,0.77558937,3019.5,3019.4,0.00900034]
[1763594779891,3.2078,3019.7,3019.5,0.3331]
[1763594780092,0.77553229,3019.6,3019.5,0.3331]
[1763594781997,2.75729939,3019.8,3019.7,0.5534]
[1763594782190,2.75729939,3019.8,3019.5,0.3331]
[1763594782191,3.5322745,3019.8,3019.5,0.3331]
[1763594782393,3.2078,3019.7,3019.5,0.3331]
[1763594782592,3.2078,3019.7,3019.6,0.5534]
[1763594782790,3.2078,3019.7,3019.5,0.3331]
[1763594783192,3.2078,3019.7,3019.6,0.5534]
[1763594784391,3.2078,3019.7,3019.5,0.3331]
[1763594784985,3.2078,3019.7,3019.4,0.00900034]
[1763594785794,0.53706,3019.5,3019.4,0.00900034]
[1763594789903,3.2078,3019.7,3019.5,0.3133]
[1763594790904,3.2078,3019.7,3019.6,0.4741]
[1763594791799,3.2078,3019.7,3019.5,0.3133]
[1763594792899,3.74484,3019.7,3019.5,0.3133]
[1763594795104,5.96512939,3019.7,3019.5,0.3133]
[1763594795502,0.53706,3019.5,3019.4,0.00900034]
[1763594796810,0.53706,3019.5,3019.4,0.50650034]
[1763594797410,0.53706,3019.5,3019.4,0.00900034]
[1763594798419,0.53706,3019.5,3019.4,0.50650034]
[1763594798915,0.53706,3019.5,3019.4,0.00900034]
[1763594801320,1.31115854,3019.5,3019.4,0.00900034]
[1763594801515,0.77409854,3019.5,3018.9,3.2078]
[1763594801723,1.95753887,3019.1,3018.9,3.2078]
[1763594801921,1.95753887,3019.1,3019.0,0.2974]
[1763594802923,1.95753887,3019.1,3019.0,0.30128607]
[1763594807730,3.2078,3019.3,3019.2,0.4975]
[1763594810822,3.2078,3019.3,3019.0,0.30128607]
[1763594811626,0.77638739,3019.2,3019.0,0.00388607]
[1763594811828,3.2078,3019.3,3019.0,0.00388607]
[1763594812014,0.77639855,3019.2,3019.0,0.30128607]
[1763594812323,3.2078,3019.3,3019.0,0.30128607]
[1763594812324,0.53713,3019.1,3019.0,0.30128607]
[1763594812621,0.53713,3019.1,3019.0,0.79878607]
[1763594812824,0.53713,3019.1,3019.0,0.30128607]
[1763594813026,0.53713,3019.1,3019.0,0.79878607]
[1763594813327,3.2078,3019.3,3019.2,0.4975]
[1763594813626,3.98354308,3019.3,3019.0,0.30128607]
[1763594813831,0.77574308,3019.2,3019.0,0.30128607]
[1763594814127,3.2078,3019.3,3019.0,0.30128607]
[1763594814329,0.77581796,3019.2,3019.1,0.4975]
[1763594816022,3.2078,3019.3,3019.2,0.4975]
[1763594816228,3.98356196,3019.3,3019.2,0.4975]
[1763594817627,3.98356196,3019.3,3019.0,0.30128607]
[1763594817829,3.7449,3019.3,3019.0,0.30128607]
[1763594818030,0.77577189,3019.2,3019.0,0.30128607]
[1763594818326,1.3129005,3019.1,3018.7,0.00496787]
[1763594818531,1.95753887,3019.0,3018.7,0.00496787]
[1763594819331,1.95753887,3019.0,3018.7,0.0088499]
[1763594819830,2.49468887,3019.0,3018.7,0.0088499]
[1763594820632,0.77577541,3018.9,3018.7,0.0088499]
[1763594820830,2.49468887,3019.0,3018.7,0.0088499]
[1763594821030,3.74499,3018.8,3018.7,0.0088499]
[1763594821329,4.52077957,3018.8,3018.7,0.0088499]
[1763594821730,0.53726,3018.4,3018.1,3.2078]
[1763594821936,1.95753887,3018.2,3018.1,3.2078]
[1763594822426,1.95753887,3018.2,3018.0,0.3331]
[1763594822825,1.96173617,3018.2,3018.0,0.3372814]
[1763594823232,2.49904617,3018.2,3018.0,0.3372814]
[1763594823931,0.53731,3018.1,3018.0,0.3372814]
[1763594824535,0.0041973,3018.2,3018.1,0.4975]
[1763594826239,0.00496787,3018.4,3018.3,0.4261]
[1763594827430,0.00809508,3018.4,3018.3,0.4261]
[1763594829528,1.96563395,3018.4,3018.0,3.2119814]
[1763594829735,1.96563395,3018.4,3017.5,2.02841667]
[1763594829736,4.8733698,3018.3,3017.5,0.2697]
[1763594830034,5.16533887,3017.6,3017.5,0.2697]
[1763594830636,5.16533887,3017.6,3017.5,0.2737358]
[1763594831030,5.70273887,3017.6,3017.5,0.2737358]
[1763594831237,5.70273887,3017.6,3017.5,0.0040358]
[1763594832033,5.70273887,3017.6,3017.5,0.2737358]
[1763594833435,5.16533887,3017.6,3016.2,1.73101667]
[1763594833633,0.53762,3016.4,3016.0,0.2697]
[1763594833840,1.95753887,3016.1,3015.6,3.2078]
[1763594834340,1.95753887,3015.7,3015.6,3.2078]
[1763594834641,1.96128309,3015.7,3015.6,0.00333083]
[1763594835939,1.96128309,3015.7,3015.6,0.42943083]
[1763594836233,1.96128309,3015.7,3015.6,0.00333083]
[1763594838342,2.49902309,3015.7,3015.6,0.00333083]
[1763594838944,1.96128309,3015.7,3015.6,0.00333083]
[1763594839942,1.96128309,3015.7,3015.6,0.42943083]
[1763594840539,0.00374422,3015.7,3015.6,0.42943083]
[1763594843256,0.00374422,3015.7,3015.6,0.00333083]
[1763594843749,0.00374422,3015.7,3015.6,0.42943083]
[1763594844149,1.96128309,3015.7,3015.6,0.42943083]
[1763594846859,1.96128309,3015.7,3015.6,0.00333083]
[1763594848549,2.49902309,3015.7,3015.6,0.00333083]
[1763594851450,0.53779,3015.5,3015.3,0.00496787]
[1763594852954,0.53779,3015.5,3015.3,0.00807653]
[1763594854161,3.74559,3015.4,3015.3,0.00807653]
[1763594857867,3.2078,3015.4,3015.3,0.44057653]
[1763594858364,0.00374422,3015.7,3015.6,0.4325]
[1763594859871,0.00496787,3016.0,3015.9,0.4325]
[1763594860569,0.54265787,3016.0,3015.5,3.4563]
[1763594860763,0.5455334,3016.0,3015.5,3.4563]
[1763594861171,3.2078,3015.8,3015.5,0.2485]
[1763594861866,3.2078,3015.8,3015.7,0.4325]
[1763594862163,3.98884419,3015.8,3015.7,0.4325]
[1763594863069,0.53776,3015.6,3015.5,0.2485]
[1763594863372,1.31880419,3015.6,3015.5,0.681]
[1763594863674,1.32100961,3015.6,3015.5,0.681]
[1763594864570,0.78324961,3015.6,3015.5,0.681]
[1763594865171,3.2078,3015.8,3015.7,0.4325]
[1763594865470,3.99101694,3015.8,3015.7,0.4325]
[1763594867779,0.78321694,3015.8,3015.7,0.4325]
[1763594869175,0.53776,3015.6,3015.5,0.2485]
[1763594869367,0.53776,3015.6,3015.5,0.681]
[1763594869575,1.32097694,3015.6,3015.5,0.681]
[1763594870676,0.78321694,3015.6,3015.5,0.681]
[1763594873593,1.32097694,3015.6,3015.5,0.2485]
[1763594873774,1.32097694,3015.6,3015.5,0.681]
[1763594873980,1.32097694,3015.6,3015.5,0.2485]
[1763594874484,1.32097694,3015.6,3015.5,0.681]
[1763594874783,1.32097694,3015.6,3015.5,0.2485]
[1763594875087,1.32097694,3015.6,3015.5,0.681]
[1763594876275,0.90245788,3016.0,3015.9,0.4325]
[1763594876481,0.4287434,3016.0,3015.9,0.4325]
[1763594876781,0.0078434,3016.0,3015.9,0.4325]
[1763594877378,0.4287434,3016.0,3015.9,0.4325]
[1763594878086,0.4287434,3016.0,3015.5,3.4563]
[1763594879483,0.4209,3015.6,3015.5,3.4563]
[1763594879683,0.4209,3015.6,3015.5,0.2485]
[1763594879884,0.4209,3015.6,3015.5,0.681]
[1763594880490,0.4209,3015.4,3015.3,0.44057653]
[1763594880690,0.95866,3015.6,3015.5,0.681]
[1763594881176,0.4209,3015.4,3015.3,0.00807653]
[1763594881582,0.4209,3015.4,3015.3,0.44057653]
[1763594881882,0.4209,3015.4,3015.3,0.00807653]
[1763594882384,0.95869,3015.4,3015.3,0.00807653]
[1763594883185,3.2078,3015.7,3015.3,0.43147653]
[1763594883391,3.2078,3015.7,3015.6,0.4234]
[1763594883586,3.6334,3015.7,3015.6,0.4234]
[1763594884490,3.6334,3015.7,3015.3,0.00807653]
[1763594885285,0.4256,3015.4,3015.3,0.43147653]
[1763594885482,3.74555,3015.7,3015.3,0.43147653]
[1763594886491,3.74555,3015.7,3015.6,0.4234]
[1763594886892,4.17115,3015.7,3015.6,0.4234]
[1763594887789,3.74555,3015.7,3015.5,0.6656]
[1763594888093,0.4256,3015.6,3015.5,0.6656]
[1763594888293,1.20478142,3015.6,3015.5,0.6656]
[1763594888493,1.74254142,3015.6,3015.5,0.6656]
[1763594890092,1.74254142,3015.6,3015.5,0.4234]
[1763594890288,1.74254142,3015.6,3015.3,0.00807653]
[1763594890488,0.4256,3015.4,3015.3,0.43147653]
[1763594890684,0.53776,3015.6,3015.3,0.43147653]
[1763594890896,0.53776,3015.6,3015.5,0.6656]
[1763594891203,0.4256,3015.4,3015.3,0.00807653]
[1763594891897,0.96339,3015.4,3015.3,0.00807653]
[1763594892598,0.96339,3015.4,3015.3,0.43147653]
[1763594892792,0.96339,3015.4,3015.3,0.00807653]
[1763594894795,0.96339,3015.4,3015.3,0.43147653]
[1763594894993,3.2078,3015.7,3015.5,0.6656]
[1763594895197,3.2078,3015.7,3015.6,0.4234]
[1763594895599,0.9711234,3016.0,3015.9,0.4234]
[1763594895894,1.75028769,3016.0,3015.9,0.4234]
[1763594896491,1.75028769,3016.0,3015.5,3.45]
[1763594896700,0.77916429,3015.9,3015.5,3.45]
[1763594896903,0.5455234,3016.0,3015.5,3.45]
[1763594897697,0.7840234,3016.0,3015.5,3.45]
[1763594898795,0.4256,3015.6,3015.5,3.8734]
[1763594898996,0.4256,3015.4,3015.3,0.00807653]
[1763594902909,0.4256,3015.4,3015.3,0.43147653]
[1763594903403,0.4256,3015.4,3015.3,0.00807653]
[1763594905004,0.4256,3015.4,3015.3,0.43147653]
[1763594905403,0.53778,3015.5,3015.3,0.43147653]
[1763594905605,0.4256,3015.4,3015.3,0.00807653]
[1763594906600,0.4256,3015.4,3015.3,0.43147653]
[1763594908106,0.53778,3015.5,3015.4,0.3922]
[1763594908511,0.92368,3015.5,3015.4,0.3922]
[1763594909908,0.3859,3015.4,3015.3,0.40027653]
[1763594910109,0.92369,3015.4,3015.3,0.00807653]
[1763594910617,0.3859,3015.4,3015.3,0.40027653]
[1763594911014,0.3859,3015.4,3015.3,0.00807653]
[1763594911817,0.3859,3015.4,3015.3,0.40027653]
[1763594913013,5.43175374,3015.7,3015.3,0.40027653]
[1763594913214,1.14748617,3015.6,3015.5,0.3719]
[1763594913421,0.78378617,3015.6,3015.5,0.6058]
[1763594913616,0.3637,3015.6,3015.5,0.6058]
[1763594914326,0.3637,3015.4,3015.3,0.37997653]
[1763594914526,0.53777,3015.6,3015.3,0.37997653]
[1763594915628,0.53777,3015.6,3015.3,3.58777653]
[1763594916929,0.90147,3015.6,3015.5,0.3719]
[1763594917923,0.3637,3015.4,3015.3,3.58777653]
[1763594919130,5.43175374,3015.7,3015.6,0.3719]
[1763594919326,0.0078434,3016.0,3015.9,0.3719]
[1763594919635,0.3715434,3016.0,3015.9,0.3719]
[1763594919831,0.0078434,3016.0,3015.9,0.3719]
[1763594925044,1.31575285,3016.0,3015.9,0.3719]
[1763594926335,1.31575285,3016.0,3015.9,4.1299]
[1763594926934,3.2078,3016.9,3016.2,0.3719]
[1763594927134,1.30790945,3016.5,3016.4,0.3719]
[1763594927636,0.3637,3016.6,3016.2,3.2078]
[1763594927837,1.30790945,3016.3,3016.2,3.5797]
[1763594928437,0.00277241,3016.6,3016.5,0.6058]
[1763594934950,3.74517,3017.8,3017.7,0.3719]
[1763594935143,0.3637,3017.1,3017.0,3.8136]
[1763594935443,0.3637,3017.1,3017.0,0.6058]
[1763594935844,0.3637,3017.1,3016.6,3.2078]
[1763594936047,0.36795887,3017.1,3017.0,0.003264]
[1763594936249,1.67586832,3017.1,3017.0,0.003264]
[1763594938047,2.21335832,3017.1,3017.0,0.003264]
[1763594938647,2.21335832,3017.1,3016.5,0.00496787]
[1763594938648,0.3637,3016.6,3016.5,0.00496787]
[1763594939849,0.3637,3016.6,3016.5,0.00794295]
[1763594940943,0.3637,3016.6,3016.5,0.37984295]
[1763594941244,0.3637,3016.6,3016.5,0.00794295]
[1763594941546,0.3637,3016.6,3016.5,0.61374295]
[1763594941752,0.3637,3016.6,3016.5,0.00794295]
[1763594943347,0.3637,3016.6,3015.7,3.2078]
[1763594943348,0.3447,3015.8,3015.7,3.5695]
[1763594943556,1.65260945,3015.8,3015.7,3.5695]
[1763594944144,1.30790945,3015.9,3015.8,0.3617]
[1763594944441,1.65260945,3015.9,3015.8,0.3617]
[1763594944642,1.65260945,3015.9,3015.8,0.3651895]
[1763594946754,1.65260945,3015.9,3015.8,0.0034895]
[1763594949655,2.6158189,3015.9,3015.5,0.00496787]
[1763594949861,2.19036945,3015.6,3015.5,0.00496787]
[1763594950050,2.19036945,3015.6,3015.5,0.57806787]
[1763594950358,2.19036945,3015.6,3015.5,0.00496787]
[1763594950853,2.19036945,3015.6,3015.5,0.37028686]
[1763594951560,2.19036945,3015.6,3015.5,0.58168686]
[1763594952359,2.19036945,3015.6,3015.5,0.00858686]
[1763594961465,2.19036945,3015.6,3015.5,0.37028686]
[1763594961668,2.19036945,3015.6,3015.5,0.00858686]
[1763594965271,0.3447,3015.0,3014.9,3.2078]
[1763594965459,2.9605189,3015.0,3014.9,3.2078]
[1763594965664,3.1760189,3015.0,3014.9,3.2078]
[1763594966069,2.9605189,3015.0,3014.9,3.2078]
[1763594966362,2.9605189,3015.0,3014.9,3.21014779]
[1763594966568,2.9605189,3015.0,3014.9,3.53544779]
[1763594966758,1.65260945,3015.0,3014.9,3.53544779]
[1763594967171,1.30790945,3015.0,3014.9,3.53544779]
[1763594967465,3.21276787,3015.3,3015.2,0.3253]
[1763594967466,1.31287732,3015.3,3015.2,0.3253]
[1763594969866,1.31287732,3015.3,3015.2,3.5331]
[1763594970066,0.00496787,3015.3,3015.2,3.5331]
[1763594973667,5.05340945,3015.9,3015.8,0.3108]
[1763594973866,5.37190945,3015.9,3015.8,0.3108]
[1763594974169,0.3185,3015.6,3015.5,0.5069]
[1763594974367,1.62640945,3015.6,3015.5,0.5069]
[1763594974568,1.30790945,3015.6,3015.5,0.5069]
[1763594975366,1.62640945,3015.6,3015.5,0.5069]
[1763594975568,1.30790945,3015.6,3015.5,0.5069]
[1763594976475,3.21276787,3015.9,3015.8,0.3108]
[1763594976776,0.00496787,3015.9,3015.8,0.3108]
[1763594981365,0.32346787,3015.9,3015.8,0.3108]
[1763594982779,1.63168213,3015.9,3015.8,0.3108]
[1763594984272,1.31318213,3015.9,3015.8,0.3108]
[1763594985678,1.63168213,3015.9,3015.8,0.3108]
[1763594986176,1.63168213,3015.9,3015.6,3.2078]
[1763594986382,0.3185,3015.7,3015.6,3.2078]
[1763594986581,0.8564,3014.8,3014.6,0.00496787]
[1763594986782,3.5263,3014.7,3014.6,0.00496787]
[1763594987675,4.06814843,3014.7,3014.6,0.00749549]
[1763594987875,0.3185,3014.1,3014.0,0.5222]
[1763594988076,1.62671426,3014.1,3014.0,0.5222]
[1763594988878,1.62671426,3014.1,3014.0,0.50952018]
[1763594989079,1.30821426,3014.1,3014.0,0.50952018]
[1763594989777,3.2078,3014.2,3014.1,0.3108]
[1763594990879,0.0049762,3014.4,3014.3,0.3108]
[1763594991480,0.3234762,3014.4,3014.3,0.3108]
[1763594991686,0.0049762,3014.4,3014.3,0.3108]
[1763594993402,0.3234762,3014.4,3014.0,3.40652018]
[1763594993593,0.3234762,3014.4,3014.3,0.3108]
[1763594994095,0.3234762,3014.4,3013.7,0.0049762]
[1763594994096,0.3185,3014.1,3013.7,0.0049762]
[1763594994298,0.3185,3013.8,3013.7,0.0049762]
[1763594994492,3.5263,3013.8,3013.7,0.0049762]
[1763594994698,3.5263,3013.8,3013.7,0.3157762]
[1763594995298,3.5263,3013.8,3013.7,0.31932978]
[1763594997207,0.0049762,3014.4,3014.1,0.3108]
[1763594997208,3.2078,3014.2,3014.1,0.3108]
[1763594997594,0.0049762,3014.4,3014.3,0.3108]
[1763594998100,0.3234762,3014.4,3014.0,0.1961]
[1763595000208,0.3234762,3014.4,3014.3,0.3108]
[1763595000401,0.0049762,3014.4,3014.3,0.3108]
[1763595000709,3.2078,3015.0,3014.6,0.3108]
[1763595000908,0.53789,3014.9,3014.6,0.3108]
[1763595001110,3.2078,3015.0,3014.6,0.3108]
[1763595001709,3.2127762,3015.0,3014.6,0.3108]
[1763595002701,2.44608571,3015.0,3014.9,0.3432]
[1763595003107,3.2078,3015.9,3015.4,0.3432]
[1763595003307,3.5305,3015.9,3015.5,0.1896]
[1763595003508,3.74551,3015.9,3015.3,0.3432]
[1763595003709,3.74801718,3015.9,3015.3,0.3432]
[1763595004410,3.75299338,3015.9,3015.3,0.3481762]
[1763595005312,3.5305,3015.4,3015.3,0.0049762]
[1763595006312,3.2078,3015.4,3015.3,0.3481762]
[1763595007514,3.5305,3015.4,3015.3,0.3481762]
[1763595007911,3.21528338,3015.9,3015.3,0.3481762]
[1763595009207,3.5305,3015.5,3015.4,0.3432]
[1763595009610,0.3227,3015.4,3015.3,0.0049762]
[1763595013417,0.86049,3015.4,3015.3,0.0049762]
[1763595014212,0.3227,3014.5,3014.4,3.2078]
[1763595014409,0.3227,3014.1,3014.0,0.1961]
[1763595014616,0.3227,3014.1,3014.0,0.5393]
[1763595015016,3.2078,3014.5,3014.0,0.5393]
[1763595016524,0.3227,3014.0,3013.9,3.2127762]
[1763595016722,0.3227,3014.0,3013.9,0.3481762]
[1763595016917,3.3394,3014.5,3014.0,0.1896]
[1763595017616,3.2078,3014.5,3014.0,0.1896]
[1763595018224,3.5305,3014.5,3014.0,0.1896]
[1763595018919,3.3394,3014.5,3014.0,0.1896]
[1763595019324,0.3227,3014.1,3014.0,0.1896]
[1763595019517,0.3227,3014.0,3013.9,0.0049762]
[1763595020026,0.3227,3014.0,3013.9,0.3481762]
[1763595020213,0.53797,3014.4,3014.0,0.1896]
[1763595020516,0.3227,3014.1,3014.0,0.5328]
[1763595020721,0.53797,3014.4,3014.0,0.5328]
[1763595021323,0.53797,3014.4,3013.9,0.0049762]
[1763595021324,0.3227,3014.0,3013.9,0.3481762]
[1763595022120,0.5153,3014.0,3013.9,0.0049762]
[1763595022317,0.3227,3014.0,3013.9,0.0049762]
[1763595022826,0.3227,3014.3,3014.2,0.3432]
[1763595023018,3.3394,3014.5,3014.2,0.3432]
[1763595023019,3.2078,3014.5,3014.2,0.3432]
[1763595023223,3.5305,3014.5,3014.4,0.3432]
[1763595023431,3.2078,3014.5,3014.4,0.3432]
[1763595024320,0.0049762,3014.6,3014.5,0.5328]
[1763595025028,0.3276762,3014.6,3014.5,0.5328]
[1763595025330,0.3276762,3014.6,3014.0,0.1896]
[1763595025516,0.3276762,3014.6,3014.5,0.3432]
[1763595025722,0.3276762,3014.6,3014.5,0.5328]
[1763595028521,0.0049762,3014.6,3014.5,0.5328]
[1763595029634,0.3271762,3014.6,3014.5,0.5328]
[1763595029925,0.3271762,3014.6,3014.0,0.1896]
[1763595031332,0.3271762,3014.6,3014.5,0.4973]
[1763595033233,0.0049762,3014.6,3014.5,0.4973]
[1763595036133,0.2970762,3014.6,3014.0,0.1896]
[1763595036639,0.2970762,3014.6,3014.5,0.4915]
[1763595036934,0.0049762,3014.6,3014.5,0.4915]
[1763595039535,0.2921,3014.4,3014.3,0.3161]
[1763595039846,0.2921,3014.0,3013.9,0.0049762]
[1763595040027,0.2921,3013.5,3013.0,0.1896]
[1763595040332,0.2921,3013.1,3013.0,0.5057]
[1763595040736,0.1779,3013.5,3013.0,0.5057]
[1763595040935,2.22600244,3013.8,3013.0,0.5057]
[1763595041134,2.76408244,3013.8,3013.1,0.0049762]
[1763595041341,2.76783639,3013.8,3013.1,0.0049762]
[1763595042141,0.2921,3013.2,3013.1,0.0049762]
[1763595042335,3.4999,3013.2,3013.1,0.0049762]
[1763595044434,3.2078,3013.2,3013.1,0.3210762]
[1763595044635,3.4999,3013.2,3013.1,0.3210762]
[1763595045036,3.4999,3013.2,3013.1,0.0049762]
[1763595047742,4.03808,3013.2,3013.1,0.0049762]
[1763595047940,0.2921,3012.5,3012.4,3.2078]
[1763595048144,0.2921,3012.0,3011.9,3.2078]
[1763595048953,0.2921,3012.0,3011.9,3.21210558]
[1763595049257,0.2921,3012.0,3011.9,3.52820558]
[1763595050062,0.2921,3012.0,3011.9,0.32040558]
[1763595050265,0.2921,3012.0,3011.9,0.00430558]
[1763595050852,3.2078,3012.1,3012.0,0.4915]
[1763595051357,0.2921,3012.0,3011.9,0.00430558]
[1763595051550,2.2580354,3012.0,3011.9,0.00430558]
[1763595051750,2.4359354,3012.0,3011.9,0.00430558]
[1763595051950,0.2921,3011.7,3010.9,3.2078]
[1763595052147,2.0420354,3011.5,3010.9,3.2078]
[1763595052563,1.9659354,3011.5,3010.9,3.2078]
[1763595053061,2.04499139,3011.5,3011.0,0.49441794]
[1763595053363,1.96889139,3011.5,3011.0,0.49441794]
[1763595054557,0.2921,3011.1,3011.0,0.31901794]
[1763595054755,1.96889139,3011.5,3011.0,0.49441794]
[1763595056248,0.2921,3011.1,3011.0,0.00291794]
[1763595056455,0.2921,3011.1,3011.0,0.49441794]
[1763595056750,3.2078,3011.2,3011.1,0.3161]
[1763595057847,3.4999,3011.2,3011.1,0.3161]
[1763595058658,0.2921,3011.1,3011.0,0.00291794]
[1763595058858,2.2580354,3011.1,3011.0,0.00291794]
[1763595059558,0.2921,3010.6,3010.5,3.2078]
[1763595059858,1.9659354,3010.6,3009.7,3.2078]
[1763595060055,0.0049762,3010.5,3010.3,0.3161]
[1763595060255,0.0049762,3010.5,3010.4,0.3161]
[1763595060457,0.2921,3010.1,3009.7,3.2078]
[1763595060659,3.2078,3010.4,3010.0,0.4915]
[1763595060958,3.4999,3010.4,3010.3,0.3161]
[1763595061159,3.4999,3010.4,3010.0,0.1754]
[1763595061655,0.0049762,3010.5,3010.4,0.3161]
[1763595061860,0.2970762,3010.5,3010.4,0.3161]
[1763595062062,0.0049762,3010.5,3010.4,0.3161]
[1763595062360,0.3024762,3010.5,3010.1,3.2078]
[1763595062560,0.3024762,3010.5,3010.0,0.1754]
[1763595063662,3.2078,3010.4,3010.0,0.1754]
[1763595063856,3.2078,3010.4,3010.3,0.3132]
[1763595064160,3.5053,3010.4,3010.3,0.3132]
[1763595064361,3.5053,3010.4,3010.0,0.1754]
[1763595064760,0.0049762,3010.5,3010.4,0.3132]
[1763595065358,0.2975,3010.3,3010.2,3.2078]
[1763595065557,1.9709116,3010.5,3010.2,0.3132]
[1763595065760,0.0049762,3010.5,3010.2,0.3132]
[1763595066259,0.2975,3010.3,3010.0,0.1868]
[1763595066564,0.0049762,3010.5,3010.0,0.5]
[1763595067758,0.0049762,3010.5,3010.4,0.3132]
[1763595070856,3.2078,3011.3,3010.5,0.1868]
[1763595071064,3.2078,3011.3,3011.0,0.1868]
[1763595072556,3.2078,3011.3,3011.2,0.3132]
[1763595072855,0.00793219,3011.5,3011.4,0.3132]
[1763595075967,3.2078,3012.1,3011.6,0.3132]
[1763595076858,3.2107774,3012.1,3011.6,0.3132]
[1763595078062,5.1767128,3012.1,3011.6,0.3132]
[1763595083065,0.2975,3011.7,3011.5,0.1868]
[1763595083272,0.2975,3011.6,3011.5,0.1868]
[1763595084064,0.2975,3011.6,3011.0,3.3946]
[1763595084270,0.2975,3011.1,3011.0,3.3946]
[1763595084574,0.2975,3010.9,3010.6,3.2078]
[1763595084870,2.2634354,3010.9,3010.6,3.2078]
[1763595085265,0.2975,3010.9,3010.8,0.3181762]
[1763595085670,3.2078,3011.1,3010.8,0.3181762]
[1763595086370,0.2975,3010.9,3010.8,0.3181762]
[1763595087867,0.2975,3010.9,3010.8,0.0049762]
[1763595088566,0.2975,3010.9,3010.8,0.2908762]
[1763595088772,3.2078,3011.1,3011.0,0.4511]
[1763595090073,0.2725,3011.1,3011.0,0.4511]
[1763595090676,3.2078,3011.5,3011.0,0.4511]
[1763595091673,0.2725,3011.1,3011.0,0.4511]
[1763595091975,3.4875,3011.5,3011.4,0.271]
[1763595092375,3.4875,3011.5,3011.0,0.1652]
[1763595092773,3.4875,3011.5,3011.4,0.271]
[1763595092974,5.3516354,3012.0,3011.5,0.1609]
[1763595093170,5.1737354,3012.0,3011.5,0.1609]
[1763595093374,3.2078,3012.0,3011.5,0.1609]
[1763595093974,3.2078,3012.0,3011.9,0.271]
[1763595094177,3.4875,3012.0,3011.9,0.00253912]
[1763595094577,3.5725,3012.0,3011.9,0.00253912]
[1763595095078,3.4875,3012.0,3011.9,0.00253912]
[1763595096078,3.5725,3012.0,3011.9,0.00253912]
[1763595100481,3.4875,3012.0,3011.9,0.00253912]
[1763595100685,3.2078,3012.0,3011.9,0.27353912]
[1763595101180,0.0029774,3012.1,3012.0,0.4319]
[1763595101681,3.2078,3014.0,3013.5,0.4319]
[1763595101882,0.2797,3013.3,3013.2,3.2078]
[1763595102082,0.2797,3013.3,3013.0,0.1609]
[1763595102288,3.2078,3013.9,3013.2,3.4788]
[1763595102579,3.21532625,3013.9,3013.2,3.4837762]
[1763595103180,5.18126165,3013.9,3013.2,3.4837762]
[1763595103374,0.2797,3013.3,3013.2,0.2759762]
[1763595104377,5.18126165,3013.9,3013.2,0.2759762]
[1763595104774,3.21532625,3013.9,3013.2,0.2759762]
[1763595104973,3.4875,3013.5,3013.4,0.271]
[1763595105887,0.00752625,3013.9,3013.2,0.0049762]
[1763595105888,3.21532625,3013.9,3013.5,0.1609]
[1763595106875,3.21532625,3013.9,3013.8,0.271]
[1763595107379,3.49502625,3013.9,3013.8,0.271]
[1763595107583,3.21532625,3013.9,3013.8,0.271]
[1763595108185,3.49502625,3013.9,3013.8,0.271]
[1763595108982,3.49502625,3013.9,3013.5,0.1609]
[1763595109987,0.28722625,3013.9,3013.5,0.1609]
[1763595110686,0.00752625,3013.9,3013.8,0.271]
[1763595111889,0.28722625,3013.9,3013.8,0.271]
[1763595112287,0.00752625,3013.9,3013.8,0.271]
[1763595117694,0.28722625,3013.9,3013.8,0.271]
[1763595118486,0.2797,3013.6,3013.5,0.4319]
[1763595119090,0.00752625,3013.9,3013.5,0.4319]
[1763595119286,0.00752625,3013.9,3013.8,0.271]
[1763595120596,0.28722625,3013.9,3013.8,0.271]
[1763595120992,0.00752625,3013.9,3013.8,0.271]
[1763595123797,0.28722625,3013.9,3013.8,0.271]
[1763595124094,0.2557,3013.6,3013.5,0.403]
[1763595124989,0.00752625,3013.9,3013.8,0.2421]
[1763595125595,3.2078,3014.4,3014.3,0.2421]
[1763595126588,3.4635,3014.4,3014.3,0.2421]
[1763595126792,3.46761568,3014.4,3014.3,0.00365085]
[1763595127690,3.46761568,3014.4,3014.3,0.24575085]
[1763595128096,3.21191568,3014.4,3014.3,0.24575085]
[1763595128893,0.00411568,3014.4,3014.3,0.24575085]
[1763595131297,0.0049762,3014.7,3014.6,0.2421]
[1763595131492,0.0967,3016.0,3015.6,0.2421]
[1763595131493,3.2078,3015.7,3015.6,0.2421]
[1763595131694,3.4635,3015.7,3015.6,0.2421]
[1763595131889,0.2557,3015.7,3015.6,0.2421]
[1763595132095,3.2078,3016.1,3015.6,0.2421]
[1763595132295,3.21184268,3016.1,3016.0,0.3938]
[1763595132496,3.46754268,3016.1,3016.0,0.3938]
[1763595132696,3.21184268,3016.1,3016.0,0.3938]
[1763595134206,0.00404268,3016.1,3016.0,0.3938]
[1763595134396,0.00404268,3016.1,3016.0,3.6328]
[1763595135004,3.2078,3016.9,3016.8,0.2421]
[1763595135304,3.2078,3017.3,3017.2,0.2421]
[1763595135896,3.21046054,3017.3,3017.2,0.2450195]
[1763595136301,0.00331744,3017.6,3017.5,0.3938]
[1763595137304,0.00754561,3017.6,3017.5,0.3938]
[1763595142493,0.2557,3017.3,3017.2,0.0029195]
[1763595142695,3.4635,3017.3,3017.2,0.0029195]
[1763595142991,3.4635,3017.3,3016.9,0.0049762]
[1763595142992,0.2557,3017.0,3016.9,0.0049762]
[1763595143200,0.2557,3017.0,3016.9,0.2470762]
[1763595143706,0.2557,3017.0,3016.9,0.0049762]
[1763595144108,0.2557,3017.0,3016.9,0.00891034]